[Event "Arsen Yeghiazaryan Memorial 2022"]
[Site "Yerevan"]
[Date "2022.07.04"]
[Round "4.2"]
[White "Nazari, Arad"]
[Black "Agasarov, Benik"]
[Result "1/2-1/2"]
[ECO "C42"]
[WhiteElo "2401"]
[BlackElo "2225"]
[Annotator "TA"]
[PlyCount "110"]
[EventDate "2022.06.30"]
[EventType "tourn"]
[EventCountry "ARM"]
[SourceTitle "playchess.com"]
[Source "ChessBase"]
[SourceQuality "1"]
[TimeControl "40/5400+30:1800+30"]

{[%evp 10,110,-2,-5,13,10,9,3,11,7,7,4,0,0,3,-13,-6,-16,-17,-13,-14,-41,-24,-44,-35,-41,-16,-30,-31,-37,-16,-61,-59,-58,-50,-71,-15,-12,-10,-13,-13,-230,-227,-216,-216,-215,-224,-211,-230,-227,-227,-302,-308,-546,-307,-291,-284,-268,-218,-204,-206,-200,-206,-212,-212,-342,-267,-263,-229,-241,-247,-285,-211,-213,-189,-191,-144,-148,-146,-196,-152,-187,-167,-187,-167,-166,-41,-123,-86,-94,-86,-93,-55,-122,-122,-122,-122,-120,-116,-154,-107,-116,0]} 1. e4 {[%emt 0:00:30]} e5 {[%emt 0:00:08]} 2. Nf3 {[%emt 0:00:04]} Nf6 {[%emt 0:00:09]} 3. Nxe5 {[%emt 0:04:21]} d6 {[%emt 0:00:08]} 4. Nc4 {[%emt 0:00:18]} Nxe4 {[%emt 0:00:26]} 5. Qe2 {[%emt 0:06:02]} Qe7 {[%emt 0:00:35]} 6. Ne3 {[%emt 0:00:42] Strongly threatening Nd5.} Nc6 {[%emt 0:01:59] C42: Petroff Defence: 3 Nxe5 and unusual White 3rd moves.} 7. c3 {[%emt 0:11:25] aiming for Nd5.} Nf6 {[%emt 0:02:43] Against Nd5} 8. g3 {[%emt 0:02:58]} g6 {[%emt 0:02:05] The position is equal.} 9. Bg2 {[%emt 0:00:23]} Bg7 {[%emt 0:00:10] [#]} 10. O-O $146 {[%emt 0:00:25]} ({Predecessor:} 10. d4 O-O 11. Nd2 Re8 12. O-O Qd8 13. Qb5 Ne7 14. d5 Nf5 15. Ndc4 a6 16. Qb3 {0-1 (34) Shabalov,A (2529)-Lenderman,A (2637) Chess.com INT 2019}) 10... O-O {[%emt 0:02:50]} 11. d4 {[%emt 0:00:16]} Qd8 {[%emt 0:03:25]} 12. b4 {[%emt 0:05:49]} Re8 {[%emt 0:01:55]} 13. Qc2 {[%emt 0:01:14]} Ne7 {[%emt 0:01:09]} 14. Nd2 {[%emt 0:02:43][%cal Bb1d2,Bd2c4,Bc4a5][%mdl 32]} c6 {[%emt 0:01:14]} 15. Ndc4 {[%emt 0:04:42]} Be6 {[%emt 0:03:05]} 16. Na5 {[%emt 0:01:59]} Qc7 {[%emt 0:01:01]} 17. Bd2 {[%emt 0:02:03]} Nfd5 {[%emt 0:02:26]} 18. Rac1 {[%emt 0:04:09]} Nxe3 {[%emt 0:00:58]} 19. Bxe3 {[%emt 0:07:51]} Bd5 {[%emt 0:00:08]} 20. Qd2 {[%emt 0:04:18]} b6 {[%emt 0:01:54]} 21. Nb3 {[%emt 0:00:48]} Bxg2 {[%emt 0:00:53]} 22. Kxg2 {[%emt 0:00:06]} d5 {[%emt 0:00:29]} ({Better is} 22... Nd5 $17) 23. Rce1 $11 {[%emt 0:00:58]} Nf5 {[%emt 0:00:31]} 24. Re2 {[%emt 0:02:57]} Qd7 {[%emt 0:00:37][%cal Of5h4]} 25. Rfe1 $2 {[%emt 0:08:38] [#]} (25. h3 $11) 25... Nh4+ $1 $19 {[%emt 0:02:16][%mdl 512]} 26. gxh4 {[%emt 0:01:19] Threatens to win with f3.} Qg4+ {[%emt 0:00:04]} 27. Kf1 {[%emt 0:00:05] [#] Black must now prevent Bf4.} Qf3 {[%emt 0:00:32][%cal Rf3h1]} 28. Kg1 {[%emt 0:00:07] Against Qh1+} Re4 {[%emt 0:03:18] Against Bf4. ( -> ...Rg4+)} 29. Bf4 {[%emt 0:05:14]} ({Don't blunder} 29. h3 $2 Rxh4 30. Bf4 Qxh3 $19) 29... Rxf4 $40 {[%emt 0:00:34][%mdl 128] White is in trouble.} 30. Re8+ {[%emt 0:00:15]} Rxe8 {[%emt 0:00:06]} 31. Rxe8+ {[%emt 0:00:08]} Bf8 {[%emt 0:00:02]} 32. h3 {[%emt 0:02:35]} Rxh4 {[%emt 0:00:31]} 33. Re3 {[%emt 0:00:15]} Qf5 {[%emt 0:00:49] And now ...Bh6 would win.} 34. Qd3 {[%emt 0:00:19]} Qg5+ {[%emt 0:02:14]} 35. Kf1 {[%emt 0:00:21]} Qh5 {[%emt 0:03:32]} 36. Kg2 {[%emt 0:00:55]} Bd6 {[%emt 0:02:31] Prevents Re5.} 37. Qa6 {[%emt 0:05:54]} (37. Nc1 {is a better defense.}) 37... Qg5+ {[%emt 0:00:06]} 38. Kf1 {[%emt 0:00:09]} Qf5 {[%emt 0:00:05] Against Qc8+} 39. Qd3 {[%emt 0:00:47]} Qd7 {[%emt 0:02:56]} 40. a4 {[%emt 0:01:22]} Bf4 {[%emt 0:00:00]} 41. Rf3 {[%emt 0:00:10]} Qe6 {[%emt 0:00:59]} 42. Na1 {[%emt 0:03:23]} Qe4 {[%emt 0:01:21]} (42... Kg7 $19 43. Nc2 Bb8) 43. Nc2 $17 {[%emt 0:01:12]} Bg5 {[%emt 0:14:53]} 44. b5 {[%emt 0:04:16]} (44. Qe2 $17) 44... Qe6 {[%emt 0:04:01]} 45. Rg3 {[%emt 0:08:10]} Bf4 {[%emt 0:02:19]} 46. Rf3 {[%emt 0:00:15]} Bh6 {[%emt 0:02:05]} 47. Kg2 {[%emt 0:05:22]} Bf8 {[%emt 0:05:44]} (47... cxb5 $19 48. axb5 Re4) 48. Re3 {[%emt 0:01:26]} (48. Ne3 $15) 48... Qd7 {[%emt 0:01:10]} 49. bxc6 {[%emt 0:00:10]} Qxc6 {[%emt 0:00:08]} 50. Qb5 {[%emt 0:00:09]} Qf6 {[%emt 0:08:10]} 51. Qxd5 {[%emt 0:01:59]} (51. Rf3 $1 $15 Qe6 52. Ne3) 51... Rf4 {[%emt 0:01:14]} 52. Rf3 {[%emt 0:00:38] [#]} Rxf3 $1 {[%emt 0:00:12]} 53. Qxf3 {[%emt 0:00:05]} Qg5+ {[%emt 0:00:03]} 54. Qg3 {[%emt 0:00:52]} Qd5+ {[%emt 0:00:05]} ({Black should try} 54... Qa5 55. Qc7 Qd5+ 56. Kf1 b5) 55. Qf3 {[%emt 0:00:26]} Qg5+ {[%emt 0:00:05] Weighted Error Value: White=0.23 (precise) /Black=0.19 (very precise)} (55... Qb3 $17 56. Ne3 Qxc3) 1/2-1/2

[Event "Arsen Yeghiazaryan Memorial 2022"]
[Site "Yerevan"]
[Date "2022.07.04"]
[Round "4.3"]
[White "Yeritsyan, Hayk"]
[Black "Alaverdyan, Gevorg"]
[Result "1/2-1/2"]
[ECO "E73"]
[WhiteElo "2249"]
[BlackElo "2336"]
[Annotator "TA"]
[PlyCount "153"]
[EventDate "2022.06.30"]
[EventType "tourn"]
[EventCountry "ARM"]
[SourceTitle "playchess.com"]
[Source "ChessBase"]
[SourceQuality "1"]
[TimeControl "40/5400+30:1800+30"]

{[%evp 10,153,41,48,56,27,31,19,14,12,47,39,52,28,31,5,41,0,0,-15,-35,-77,-75,-106,-95,-108,71,39,106,31,32,14,32,-24,0,-79,-77,-77,-63,-110,-30,-65,-72,-94,-102,-115,0,0,0,0,0,0,0,-196,-137,-125,-144,-169,-171,-192,0,0,209,209,209,209,231,228,250,277,245,152,156,164,161,91,93,0,0,0,0,0,0,0,0,0,0,0,0,0,0,0,0,0,0,0,7,7,7,7,7,7,12,0,0,0,0,0,0,0,0,0,0,0,7,7,7,7,7,7,8,8,8,8,8,8,8,8,11,0,0,0,0,0,0,0,0,0,0,0,0,0,0,0,0,-29990]} 1. d4 {[%emt 0:00:02]} Nf6 {[%emt 0:00:09]} 2. c4 {[%emt 0:00:27]} g6 {[%emt 0:00:06]} 3. Nc3 {[%emt 0:00:11]} Bg7 {[%emt 0:00:05]} 4. e4 {[%emt 0:00:11]} O-O {[%emt 0:00:07]} 5. Be2 {[%emt 0:00:40]} d6 {[%emt 0:00:07]} 6. Be3 {[%emt 0:00:14]} Na6 {[%emt 0:00:06] E73: King's Indian: Averbakh Variation without 6...c5.} 7. h4 {[%emt 0:02:13]} e5 {[%emt 0:00:18]} 8. h5 {[%emt 0:00:42]} exd4 {[%emt 0:11:21]} 9. Bxd4 {[%emt 0:00:03] [#]} Qe7 $146 {[%emt 0:00:51]} ({Predecessor:} 9... Nc5 10. hxg6 hxg6 11. f3 Ne6 12. Be3 c6 13. Qd2 Re8 14. O-O-O d5 15. cxd5 cxd5 {0-1 (44) Khanin,S (2482)-Mustaps,M (2370) Chess.com INT 2020}) 10. f3 {[%emt 0:08:18]} Nxh5 {[%emt 0:24:38]} 11. Nd5 {[%emt 0:14:04]} Qg5 {[%emt 0:00:02]} 12. g4 {[%emt 0:01:27]} Ng3 {[%emt 0:04:50]} 13. f4 {[%emt 0:08:20]} Qd8 {[%emt 0:03:46]} 14. Bxg7 {[%emt 0:12:08] Dancing on a razor blade.} Kxg7 {[%emt 0:00:30]} 15. Qd4+ {[%emt 0:02:58]} f6 {[%emt 0:00:02]} 16. Rh3 {[%emt 0:05:56]} Nxe2 {[%emt 0:01:39]} 17. Nxe2 {[%emt 0:00:02] Threatens to win with f5.} c6 $2 {[%emt 0:08:31]} (17... Bxg4 $17 {and life is bright.} 18. Rh4 h5) 18. Ne3 $16 {[%emt 0:00:45] 0x0.00167028d998dp-1022s more active pieces. Pair of Knights!} Qb6 {[%emt 0:06:08]} (18... Qa5+ $14 19. Nc3 Qc5) 19. Qxd6 {[%emt 0:00:17]} (19. Qd2 $1 $16) 19... Qb4+ {[%emt 0:00:58]} 20. Qxb4 {[%emt 0:00:06]} Nxb4 {[%emt 0:00:01]} 21. Kf2 {[%emt 0:00:30]} (21. O-O-O $14) 21... Be6 {[%emt 0:02:53]} 22. a3 {[%emt 0:09:27]} (22. Kf3 $11 {keeps the balance.}) 22... Nd3+ $17 {[%emt 0:00:09]} 23. Kf3 {[%emt 0:00:08]} Rad8 {[%emt 0:02:36]} 24. b4 {[%emt 0:00:40]} (24. Rah1 $15 {deserves consideration.} Bg8 25. b4) 24... Nb2 {[%emt 0:00:16]} (24... h5 $1 $17 {[%cal Rh5g4]} 25. Rg3 h4) 25. Rah1 {[%emt 0:05:17]} Bg8 {[%emt 0:02:41]} 26. f5 {[%emt 0:01:00]} g5 {[%emt 0:00:32] Against Nf4} 27. e5 {[%emt 0:01:07]} Rd3 {[%emt 0:08:26]} (27... fxe5 $17 {Strongly threatening ...Rd3.} 28. Rh5 Rd3) 28. e6 $11 {[%emt 0:02:20]} Rfd8 $1 {[%emt 0:04:21]} 29. Ng3 {[%emt 0:10:32]} Nxc4 $1 {[%emt 0:00:27]} 30. Nh5+ {[%emt 0:00:26]} ({Much weaker is} 30. Kf2 Rd2+ 31. Kg1 Nxe3 $15) 30... Kf8 {[%emt 0:00:07]} 31. Re1 {[%emt 0:00:59]} (31. Kf2 $11 {and White has nothing to worry.} Rd2+ 32. Ke1 Nxe3 33. Rxe3) 31... Ne5+ {[%emt 0:01:05]} (31... Ke7 $19 32. Kg2 R3d4) 32. Kg2 $17 {[%emt 0:00:15]} Ke7 {[%emt 0:00:21]} 33. Re2 {[%emt 0:02:11]} R8d4 {[%emt 0:00:18]} 34. Rg3 {[%emt 0:01:12]} Rxa3 $2 {[%emt 0:00:59]} (34... a6 $19 {And now ...h6 would win.} 35. Kf2 h6) 35. Nd5+ $1 $11 {[%emt 0:00:23][%mdl 64] Discovered Attack} Rxd5 $2 {[%emt 0:02:56]} (35... cxd5 $11 {and Black is okay.} 36. Rxa3 Rxg4+ 37. Kf2 Rh4) 36. Rxa3 $18 {[%emt 0:00:04]} a6 {[%emt 0:00:01]} 37. Re4 {[%emt 0:01:16][%mdl 1024] White has strong compensation.} Rd2+ {[%emt 0:01:06]} 38. Kg3 {[%emt 0:00:06]} h6 {[%emt 0:00:50]} 39. Rae3 {[%emt 0:03:11][%cal Oh5f6] Nxf6! is the strong threat.} Rd5 {[%emt 0:00:42]} 40. Rc3 {[%emt 0:00:00]} Bh7 {[%emt 0:00:00][%cal Oe5g4]} 41. Rc5 $1 {[%emt 0:03:55][%cal Oh5f6]} Nxg4 {[%emt 0:03:38]} 42. Rxd5 {[%emt 0:03:22]} cxd5 {[%emt 0:00:26]} 43. Rxg4 {[%emt 0:00:02]} ({Better is} 43. Re1 $1 $16 Bxf5 44. Ng7) 43... Bxf5 $11 {[%emt 0:00:05] The position is equal.} 44. Rd4 {[%emt 0:00:03]} Be4 {[%emt 0:00:16]} 45. Rd2 {[%emt 0:02:35]} Kxe6 {[%emt 0:00:14]} 46. Rh2 {[%emt 0:00:14]} f5 {[%emt 0:00:19]} 47. Ng7+ {[%emt 0:02:59]} Kf7 {[%emt 0:00:02]} 48. Nxf5 {[%emt 0:00:12]} Bxf5 {[%emt 0:00:01]} 49. Rxh6 {[%emt 0:00:02][%mdl 4096] Endgame KR-KB} Bg6 {[%emt 0:09:42]} 50. Rh8 {[%emt 0:01:04]} d4 {[%emt 0:08:34]} 51. Rd8 {[%emt 0:02:45]} d3 {[%emt 0:00:13]} 52. Kf3 {[%emt 0:00:05]} Ke7 {[%emt 0:04:31]} 53. Rd5 {[%emt 0:01:42]} Kf6 {[%emt 0:00:26]} 54. Rd6+ {[%emt 0:00:58]} Kf5 {[%emt 0:00:55]} 55. Rxd3 {[%emt 0:01:12]} Bh5+ {[%emt 0:03:07]} 56. Ke3 {[%emt 0:00:31]} Be8 {[%emt 0:00:48] Inhibits Rd7.} 57. Rd8 {[%emt 0:00:51]} Bc6 {[%emt 0:00:03]} 58. Rf8+ {[%emt 0:00:52]} Ke5 {[%emt 0:03:16]} 59. Rg8 {[%emt 0:00:14]} Kf6 {[%emt 0:01:45]} 60. Kf2 {[%emt 0:00:19]} Bd5 {[%emt 0:00:20]} 61. Re8 {[%emt 0:01:23]} Bc6 {[%emt 0:06:56]} 62. Re1 {[%emt 0:00:15]} Bd7 {[%emt 0:01:01]} 63. Kf3 {[%emt 0:00:23]} Be6 {[%emt 0:00:31]} 64. Re3 {[%emt 0:00:29]} Ke7 {[%emt 0:00:08]} 65. Ke4 {[%emt 0:00:18]} Kd6 {[%emt 0:00:23]} 66. Kd4 {[%emt 0:00:10]} g4 {[%emt 0:04:07]} 67. Re5 {[%emt 0:00:27]} Ke7 {[%emt 0:00:22]} 68. Rh5 {[%emt 0:00:11]} Kf6 {[%emt 0:00:47]} 69. Ke4 {[%emt 0:00:23]} g3 {[%emt 0:00:10] ( -> ...g2)} 70. Ke3 {[%emt 0:05:06]} Bd7 {[%emt 0:05:28]} 71. Rh6+ {[%emt 0:00:14]} ({Don't go for} 71. Kf3 $2 Bg4+ $1 {[%mdl 512]} 72. Kxg4 g2 73. Rh6+ Kg7 $19) 71... Kg7 {[%emt 0:01:43]} 72. Rh5 {[%emt 0:01:59]} Kg6 {[%emt 0:00:05]} 73. Rh8 {[%emt 0:00:24]} Kg7 {[%emt 0:00:54]} 74. Rh5 {[%emt 0:00:53]} Kf6 {[%emt 0:00:03]} 75. Rh6+ {[%emt 0:00:17]} ({But not} 75. Kf3 $2 {[#]} Bg4+ $1 {[%mdl 512]} 76. Kxg4 g2 77. Rh6+ Kg7 $19) 75... Kg7 {[%emt 0:01:03]} 76. Rh4 {[%emt 0:00:18]} g2 77. Ke4 $2 {[%emt 0:00:05][%mdl 40960] Weighted Error Value: White=0.23 (precise) /Black=0.25 (precise) . An unexpected result.} (77. Kf2 $11) 1/2-1/2

[Event "Arsen Yeghiazaryan Memorial 2022"]
[Site "Yerevan"]
[Date "2022.07.04"]
[Round "4.4"]
[White "Hayrapetyan, Hovik"]
[Black "Piliposyan, Robert"]
[Result "1-0"]
[ECO "E21"]
[WhiteElo "2481"]
[BlackElo "2287"]
[Annotator "TA"]
[PlyCount "105"]
[EventDate "2022.06.30"]
[EventType "tourn"]
[EventCountry "ARM"]
[SourceTitle "playchess.com"]
[Source "ChessBase"]
[SourceQuality "1"]
[TimeControl "40/5400+30:1800+30"]

{[%evp 10,105,21,0,8,8,4,16,0,0,5,0,0,0,41,33,86,73,97,97,90,103,96,99,103,98,111,101,159,123,154,60,42,49,87,84,81,90,108,119,107,113,111,111,136,125,130,119,112,106,95,87,93,91,85,85,86,86,86,85,86,34,38,40,85,85,86,86,86,85,102,12,12,0,82,82,65,53,72,79,245,233,453,453,412,391,382,216,299,289,495,450,770,397,822,667,508,486]} 1. d4 {[%emt 0:00:03]} Nf6 {[%emt 0:00:07]} 2. c4 {[%emt 0:00:05]} e6 {[%emt 0:00:04]} 3. Nc3 {[%emt 0:00:23]} Bb4 {[%emt 0:00:07]} 4. Nf3 {[%emt 0:00:14]} O-O {[%emt 0:00:11]} 5. Bg5 {[%emt 0:00:42]} c5 {[%emt 0:00:27]} 6. Rc1 {[%emt 0:00:36]} cxd4 {[%emt 0:02:38] E21: Nimzo-Indian: 4 Nf3.} 7. Nxd4 {[%emt 0:00:12]} h6 {[%emt 0:00:42]} 8. Bh4 {[%emt 0:00:18]} d5 {[%emt 0:06:51] The position is equal. 8...d5 is better than 8...Nc6.} 9. cxd5 {[%emt 0:01:24]} g5 {[%emt 0:00:25] White must now prevent ...e5.} 10. Bg3 {[%emt 0:00:07]} Qxd5 {[%emt 0:00:07]} 11. e3 {[%emt 0:00:47]} Ne4 {[%emt 0:22:44] [#]} (11... Qxa2 $5 12. Qc2 (12. Qd2 Ne4 $17) 12... Bxc3+ 13. bxc3 (13. Qxc3 Ne4 $11) 13... Qxc2 14. Rxc2 Ne4 $11) 12. f3 $146 {[%emt 0:01:10]} ({Predecessor:} 12. Bd3 Bxc3+ 13. bxc3 Nd7 14. Bxe4 Qxe4 15. O-O b6 16. Nb5 Nc5 17. Nd6 Qg6 18. Qf3 {1-0 (36) Gelfand,B (2734)-Inarkiev,E (2730) Magas 2016}) 12... Nxg3 {[%emt 0:00:57]} (12... Bxc3+ $14 13. bxc3 Nxg3 14. hxg3 Kg7) 13. hxg3 $16 {[%emt 0:00:08]} Kg7 {[%emt 0:08:09]} 14. a3 {[%emt 0:05:08]} Bxc3+ {[%emt 0:00:14]} 15. Rxc3 {[%emt 0:00:04]} Nc6 {[%emt 0:05:27]} 16. Nxc6 {[%emt 0:10:20] White is more active.} bxc6 {[%emt 0:00:27]} 17. Qc2 {[%emt 0:04:28]} Rb8 {[%emt 0:07:15]} 18. b4 {[%emt 0:07:19]} (18. Rxc6 Qe5 19. Qc3 Qxc3+ 20. bxc3 Rb2 $11) 18... Rb6 {[%emt 0:15:37]} (18... a5 $142) 19. Kf2 {[%emt 0:08:20]} Qf5 {[%emt 0:02:59]} 20. Qxf5 {[%emt 0:16:41]} ({Don't do} 20. Rxc6 Qxc2+ 21. Rxc2 Ba6 $16) ({White should play} 20. Bd3 $1 $16 {[%cal Rd3f5]} Qf6 21. Rxc6 Rxc6 22. Qxc6) 20... exf5 $14 {[%emt 0:00:07]} 21. Be2 {[%emt 0:00:02]} Rd8 {[%emt 0:01:52][%cal Oa7a5]} 22. Rd1 {[%emt 0:04:11]} Rxd1 {[%emt 0:01:58]} 23. Bxd1 $16 {[%emt 0:00:08][%mdl 4096] Endgame KRB-KRB} Bd7 {[%emt 0:01:35][%cal Oa7a5]} 24. Be2 $1 {[%emt 0:03:03]} Kf6 {[%emt 0:01:47]} 25. Rc5 {[%emt 0:00:10]} Be6 {[%emt 0:03:31]} 26. Ke1 {[%emt 0:02:39]} Bd5 {[%emt 0:05:11]} 27. Kd2 {[%emt 0:02:58]} Rb7 {[%emt 0:00:41]} 28. Bc4 {[%emt 0:00:26]} Bxc4 {[%emt 0:02:19]} 29. Rxc4 {[%emt 0:00:09] KR-KR} Rd7+ {[%emt 0:00:10]} 30. Kc2 {[%emt 0:01:36]} Rd6 {[%emt 0:00:29]} 31. Rc5 {[%emt 0:00:05]} Re6 {[%emt 0:00:47]} 32. Kd3 {[%emt 0:00:15]} Rd6+ {[%emt 0:00:18]} 33. Ke2 {[%emt 0:00:18]} Ke6 {[%emt 0:00:35]} 34. Ra5 {[%emt 0:00:26]} Rd7 {[%emt 0:00:05]} 35. f4 {[%emt 0:08:45]} (35. Ra4 $16) 35... f6 $14 {[%emt 0:01:00]} 36. Ra6 {[%emt 0:01:50]} Kd5 {[%emt 0:02:51]} 37. Kd3 $1 {[%emt 0:00:34]} h5 {[%emt 0:02:16]} 38. Ra5+ {[%emt 0:00:42]} Ke6+ {[%emt 0:00:09]} 39. Ke2 $1 {[%emt 0:01:10]} Rg7 {[%emt 0:01:26] [#]} 40. Kf3 {[%emt 0:00:00]} (40. fxg5 $1 $16 {[%cal Og5g6] Strongly threatening g6!} fxg5 41. Rc5) 40... Rd7 $11 {[%emt 0:00:00]} 41. Ke2 {[%emt 0:11:14]} Rb7 {[%emt 0:04:59]} (41... Rg7 $1 $11 {remains equal.}) 42. Kf1 $16 {[%emt 0:09:05]} Rd7 {[%emt 0:23:44]} 43. Rc5 {[%emt 0:00:41]} Rd1+ $1 {[%emt 0:00:43]} 44. Ke2 {[%emt 0:00:05]} Ra1 {[%emt 0:01:24] Loses the game.} (44... Rd6 $16 45. a4 g4) 45. Rxc6+ $18 {[%emt 0:00:32]} Kd5 $2 {[%emt 0:00:07]} (45... Kf7 46. Rc7+ Kg6) 46. Rxf6 {[%emt 0:00:46]} Ra2+ {[%emt 0:00:01]} 47. Kf1 {[%emt 0:00:08]} gxf4 {[%emt 0:00:40]} 48. Rxf5+ {[%emt 0:10:10]} (48. exf4 $142 Ra1+ 49. Kf2) 48... Ke4 {[%emt 0:00:11]} 49. Rxf4+ {[%emt 0:00:03]} Kxe3 $2 {[%emt 0:00:03] [#]} (49... Ke5 50. Rh4 Rxa3) 50. Kg1 $1 {[%emt 0:00:06] And now Rf7 would win.} ({Not} 50. Rf3+ Ke4 51. Kg1 Ke5 $16) 50... a6 {[%emt 0:01:21]} (50... Ra1+ $2 51. Kh2 $18) (50... Rc2 $142 51. Rf5 Ke4) 51. Kh2 {[%emt 0:00:08]} Ra1 $2 {[%emt 0:00:05]} (51... Ke2 52. Rh4 Rxa3 53. Rxh5 Rb3) 52. Rf5 {[%emt 0:00:29]} Ke4 {[%emt 0:02:01]} 53. Ra5 {[%emt 0:00:22] Weighted Error Value: White=0.25 (precise) /Black=0.33} 1-0